fUSD/lending_fUSD_20260506
["ID","MTS","AMOUNT","RATE_DAILY","PERIOD"]
[421686877,1778041853000,-1599.93289033,0.00039726,15]
[421686861,1778041853000,-1587.33499356,0.00039726,15]
[421686876,1778041853000,-1599.93289033,0.00039726,15]
[421686849,1778041853000,-1587.33499356,0.00039726,15]
[421686853,1778041853000,-1587.33499356,0.00039726,15]
[421686847,1778041853000,-1587.33499356,0.00039726,15]
[421686851,1778041853000,-1587.33499356,0.00039726,15]
[421686846,1778041853000,-1587.33499356,0.00039726,15]
[421686848,1778041853000,-1587.33499356,0.00039726,15]
[421686852,1778041853000,-1587.33499356,0.00039726,15]
[421686850,1778041853000,-1587.33499356,0.00039726,15]
[421686855,1778041853000,-1587.33499356,0.00039726,15]
[421686865,1778041853000,-1587.33499356,0.00039726,15]
[421686854,1778041853000,-1587.33499356,0.00039726,15]
[421686856,1778041853000,-1587.33499356,0.00039726,15]
[421686874,1778041853000,-1599.93289033,0.00039726,15]
[421686859,1778041853000,-1587.33499356,0.00039726,15]
[421686858,1778041853000,-1587.33499356,0.00039726,15]
[421686862,1778041853000,-1587.33499356,0.00039726,15]
[421686857,1778041853000,-1587.33499356,0.00039726,15]
[421686863,1778041853000,-1587.33499356,0.00039726,15]
[421686864,1778041853000,-1587.33499356,0.00039726,15]
[421686866,1778041853000,-1587.33499356,0.00039726,15]
[421686868,1778041853000,-1587.33499356,0.00039726,15]
[421686869,1778041853000,-1587.33499356,0.00039726,15]
[421686870,1778041853000,-1587.33499356,0.00039726,15]
[421686867,1778041853000,-1587.33499356,0.00039726,15]
[421686875,1778041853000,-1599.93289033,0.00039726,15]
[421686871,1778041853000,-1587.33499356,0.00039726,15]
[421686860,1778041853000,-1587.33499356,0.00039726,15]
[421686903,1778041853000,-155.53159687,0.0004,90]
[421686907,1778041853000,-567.892534,0.00040047,120]
[421686901,1778041853000,-588.95083469,0.0004,120]
[421686937,1778041853000,-156.79057218,0.000405,120]
[421686942,1778041853000,-150.0,0.00040632,120]
[421686941,1778041853000,-546.69,0.00040578,120]
[421686943,1778041853000,-150.0,0.00040632,120]
[421686946,1778041853000,-546.69,0.00040678,120]
[421686939,1778041853000,-573.36,0.00040544,120]
[421686938,1778041853000,-163.0,0.00040541,11]
[421686936,1778041853000,-312.623494,0.000405,20]
[421686945,1778041853000,-190.07893127,0.00040632,120]
[421686940,1778041853000,-152.14169922,0.00040558,120]
[421686944,1778041853000,-150.0,0.00040632,120]
[421686957,1778041853000,-537.0,0.00040822,60]
[421686935,1778041853000,-2743.32486361,0.000405,120]
[421686956,1778041853000,-537.0,0.00040822,60]
[421686948,1778041853000,-9261.28668809,0.000407,6]
[421686949,1778041853000,-2305.0,0.0004071,11]
[421686947,1778041853000,-168.75516773,0.00040697,14]
[421686951,1778041853000,-156.96950751,0.00040749,120]
[421686950,1778041853000,-152.0,0.00040739,14]
[421686953,1778041853000,-546.69,0.00040778,120]
[421686954,1778041853000,-152.0,0.000408,120]
[421686955,1778041853000,-209.8895384,0.00040822,60]
[421686952,1778041853000,-176.3,0.0004075,120]
[421686960,1778041853000,-537.0,0.00040822,60]
[421686961,1778041853000,-537.0,0.00040822,60]
[421686910,1778041853000,-300.0,0.0004011,2]
[421686958,1778041853000,-537.0,0.00040822,60]
[421686932,1778041853000,-1099.5765,0.00040484,4]
[421686959,1778041853000,-537.0,0.00040822,60]
[421686926,1778041853000,-675.23604974,0.00040469,30]
[421686927,1778041853000,-2050.34227714,0.0004047,30]
[421686909,1778041853000,-300.0,0.0004011,2]
[421686905,1778041853000,-152.14169922,0.0004001,120]
[421686904,1778041853000,-319.54666784,0.0004,2]
[421686906,1778041853000,-156.40820005,0.0004001,120]
[421686911,1778041853000,-270.0,0.0004011,2]
[421686913,1778041853000,-546.69,0.00040278,120]
[421686922,1778041853000,-546.69,0.00040378,120]
[421686912,1778041853000,-546.69,0.00040178,120]
[421686916,1778041853000,-666.0,0.00040289,30]
[421686914,1778041853000,-156.96950751,0.00040283,120]
[421686915,1778041853000,-300.0,0.00040289,10]
[421686919,1778041853000,-435.94,0.0004029,60]
[421686908,1778041853000,-546.69,0.00040078,120]
[421686917,1778041853000,-2245.51,0.0004029,60]
[421686921,1778041853000,-1535.82484893,0.000403,7]
[421686924,1778041853000,-666.0,0.00040425,30]
[421686925,1778041853000,-361.72528501,0.00040434,14]
[421686931,1778041853000,-1247.3476,0.00040484,4]
[421686930,1778041853000,-546.69,0.00040478,120]
[421686923,1778041853000,-308.55735666,0.00040425,10]
[421686929,1778041853000,-2050.34227714,0.0004047,30]
[421686934,1778041853000,-11401.42,0.000405,120]
[421686933,1778041853000,-2112.87073412,0.000405,120]
[421686918,1778041853000,-2674.05,0.0004029,60]
[421686920,1778041853000,-21901.38,0.0004029,60]
[421686928,1778041853000,-2050.34227714,0.0004047,30]
[421687005,1778041854000,-166.38904159,0.00040822,60]
[421687001,1778041854000,-423.0,0.00040822,60]
[421687000,1778041854000,-521.83722125,0.00040822,60]
[421686988,1778041854000,-537.0,0.00040822,60]
[421686999,1778041854000,-423.0,0.00040822,60]
[421686994,1778041854000,-423.0,0.00040822,60]
[421686990,1778041854000,-423.0,0.00040822,60]
[421686989,1778041854000,-500.0,0.00040822,60]
[421686995,1778041854000,-500.0,0.00040822,60]
[421686991,1778041854000,-500.0,0.00040822,60]
[421687006,1778041854000,-423.0,0.00040822,60]
[421686992,1778041854000,-423.0,0.00040822,60]
[421687002,1778041854000,-423.0,0.00040822,60]
[421687010,1778041854000,-150.0,0.00040822,30]
[421687003,1778041854000,-150.0,0.00040822,60]
[421687007,1778041854000,-537.0,0.00040822,60]
[421687008,1778041854000,-423.0,0.00040822,60]
[421687009,1778041854000,-150.0,0.00040822,30]
[421687012,1778041854000,-234.2455945,0.00040822,30]
[421687013,1778041854000,-537.0,0.00040822,60]
[421687022,1778041854000,-540.23170004,0.00040822,60]
[421687011,1778041854000,-150.0,0.00040822,30]
[421687023,1778041854000,-446.25809725,0.00040822,60]
[421687017,1778041854000,-423.0,0.00040822,60]
[421687016,1778041854000,-537.0,0.00040822,60]
[421686993,1778041854000,-500.0,0.00040822,60]
[421687004,1778041854000,-150.0,0.00040822,60]
[421686987,1778041854000,-423.0,0.00040822,60]
[421687020,1778041854000,-537.0,0.00040822,60]
[421686998,1778041854000,-500.0,0.00040822,60]
[421686971,1778041854000,-537.0,0.00040822,60]
[421686972,1778041854000,-423.0,0.00040822,60]
[421686964,1778041854000,-537.0,0.00040822,60]
[421686962,1778041854000,-537.0,0.00040822,60]
[421686966,1778041854000,-537.0,0.00040822,60]
[421686963,1778041854000,-423.0,0.00040822,60]
[421686967,1778041854000,-423.0,0.00040822,60]
[421686969,1778041854000,-537.0,0.00040822,60]
[421686968,1778041854000,-500.0,0.00040822,60]
[421686970,1778041854000,-517.59719864,0.00040822,60]
[421686965,1778041854000,-423.0,0.00040822,60]
[421686973,1778041854000,-537.0,0.00040822,60]
[421686985,1778041854000,-500.0,0.00040822,60]
[421686976,1778041854000,-537.0,0.00040822,60]
[421686977,1778041854000,-423.0,0.00040822,60]
[421686974,1778041854000,-537.0,0.00040822,60]
[421686984,1778041854000,-500.0,0.00040822,60]
[421686978,1778041854000,-500.0,0.00040822,60]
[421686981,1778041854000,-500.0,0.00040822,60]
[421686982,1778041854000,-537.0,0.00040822,60]
[421686980,1778041854000,-423.0,0.00040822,60]
[421686979,1778041854000,-537.0,0.00040822,60]
[421686983,1778041854000,-423.0,0.00040822,60]
[421686986,1778041854000,-500.0,0.00040822,60]
[421686996,1778041854000,-423.0,0.00040822,60]
[421686997,1778041854000,-537.0,0.00040822,60]
[421686975,1778041854000,-423.0,0.00040822,60]
[421687014,1778041854000,-423.0,0.00040822,60]
[421687075,1778041854000,-500.0,0.00040822,60]
[421687018,1778041854000,-537.0,0.00040822,60]
[421687052,1778041854000,-572.0,0.00040822,60]
[421687049,1778041854000,-500.0,0.00040822,60]
[421687050,1778041854000,-500.0,0.00040822,60]
[421687056,1778041854000,-572.0,0.00040822,60]
[421687057,1778041854000,-500.0,0.00040822,60]
[421687055,1778041854000,-500.0,0.00040822,60]
[421687059,1778041854000,-500.0,0.00040822,60]
[421687062,1778041854000,-500.0,0.00040822,60]
[421687063,1778041854000,-572.0,0.00040822,60]
[421687064,1778041854000,-500.0,0.00040822,60]
[421687061,1778041854000,-500.0,0.00040822,60]
[421687067,1778041854000,-500.0,0.00040822,60]
[421687053,1778041854000,-500.0,0.00040822,60]
[421687065,1778041854000,-500.0,0.00040822,60]
[421687068,1778041854000,-500.0,0.00040822,60]
[421687070,1778041854000,-500.0,0.00040822,60]
[421687069,1778041854000,-500.0,0.00040822,60]
[421687071,1778041854000,-500.0,0.00040822,60]
[421687072,1778041854000,-500.0,0.00040822,60]
[421687076,1778041854000,-500.0,0.00040822,60]
[421687077,1778041854000,-500.0,0.00040822,60]
[421687079,1778041854000,-500.0,0.00040822,60]
[421687073,1778041854000,-500.0,0.00040822,60]
[421687078,1778041854000,-572.0,0.00040822,60]
[421687074,1778041854000,-572.0,0.00040822,60]
[421687015,1778041854000,-423.0,0.00040822,60]
[421687066,1778041854000,-500.0,0.00040822,60]
[421687054,1778041854000,-500.0,0.00040822,60]
[421687060,1778041854000,-572.0,0.00040822,60]
[421687048,1778041854000,-572.0,0.00040822,60]
[421687019,1778041854000,-423.0,0.00040822,60]
[421687051,1778041854000,-500.0,0.00040822,60]
[421687021,1778041854000,-423.0,0.00040822,60]
[421687025,1778041854000,-500.0,0.00040822,60]
[421687036,1778041854000,-500.0,0.00040822,60]
[421687026,1778041854000,-572.0,0.00040822,60]
[421687028,1778041854000,-500.0,0.00040822,60]
[421687024,1778041854000,-572.0,0.00040822,60]
[421687027,1778041854000,-500.0,0.00040822,60]
[421687035,1778041854000,-572.0,0.00040822,60]
[421687029,1778041854000,-572.0,0.00040822,60]
[421687031,1778041854000,-500.0,0.00040822,60]
[421687033,1778041854000,-500.0,0.00040822,60]
[421687034,1778041854000,-500.0,0.00040822,60]
[421687030,1778041854000,-500.0,0.00040822,60]
[421687032,1778041854000,-572.0,0.00040822,60]
[421687058,1778041854000,-500.0,0.00040822,60]
[421687041,1778041854000,-572.0,0.00040822,60]
[421687040,1778041854000,-500.0,0.00040822,60]
[421687046,1778041854000,-500.0,0.00040822,60]
[421687043,1778041854000,-572.0,0.00040822,60]
[421687045,1778041854000,-572.0,0.00040822,60]
[421687047,1778041854000,-500.0,0.00040822,60]
[421687038,1778041854000,-572.0,0.00040822,60]
[421687044,1778041854000,-500.0,0.00040822,60]
[421687037,1778041854000,-366.99161194,0.00040822,60]
[421687039,1778041854000,-150.0,0.00040822,2]
[421687042,1778041854000,-500.0,0.00040822,60]
[421687125,1778041855000,-500.0,0.00040822,60]
[421687123,1778041855000,-588.47706299,0.00040822,60]
[421687121,1778041855000,-572.0,0.00040822,60]
[421687117,1778041855000,-635.42871133,0.00040822,60]
[421687126,1778041855000,-150.0,0.00040822,60]
[421687128,1778041855000,-150.0,0.00040822,60]
[421687119,1778041855000,-572.0,0.00040822,60]
[421687127,1778041855000,-500.0,0.00040822,60]
[421687118,1778041855000,-493.40619236,0.00040822,60]
[421687116,1778041855000,-634.45337951,0.00040822,60]
[421687108,1778041855000,-572.0,0.00040822,60]
[421687111,1778041855000,-500.0,0.00040822,60]
[421687120,1778041855000,-572.0,0.00040822,60]
[421687122,1778041855000,-572.0,0.00040822,60]
[421687139,1778041855000,-500.0,0.00040822,60]
[421687130,1778041855000,-203.08154012,0.00040822,60]
[421687141,1778041855000,-500.0,0.00040822,60]
[421687129,1778041855000,-500.0,0.00040822,60]
[421687140,1778041855000,-500.0,0.00040822,60]
[421687131,1778041855000,-500.0,0.00040822,60]
[421687132,1778041855000,-500.0,0.00040822,60]
[421687135,1778041855000,-500.0,0.00040822,60]
[421687138,1778041855000,-500.0,0.00040822,60]
[421687134,1778041855000,-500.0,0.00040822,60]
[421687133,1778041855000,-500.0,0.00040822,60]
[421687136,1778041855000,-500.0,0.00040822,60]
[421687137,1778041855000,-500.0,0.00040822,60]
[421687142,1778041855000,-500.0,0.00040822,60]
[421687109,1778041855000,-500.0,0.00040822,60]
[421687124,1778041855000,-500.0,0.00040822,60]
[421687113,1778041855000,-500.0,0.00040822,60]
[421687081,1778041855000,-500.0,0.00040822,60]
[421687105,1778041855000,-500.0,0.00040822,60]
[421687080,1778041855000,-251.17490165,0.00040822,60]
[421687088,1778041855000,-572.0,0.00040822,60]
[421687089,1778041855000,-500.0,0.00040822,60]
[421687084,1778041855000,-500.0,0.00040822,60]
[421687086,1778041855000,-500.0,0.00040822,60]
[421687087,1778041855000,-500.0,0.00040822,60]
[421687085,1778041855000,-150.0,0.00040822,2]
[421687082,1778041855000,-302.27713592,0.00040822,60]
[421687083,1778041855000,-500.0,0.00040822,60]
[421687090,1778041855000,-500.0,0.00040822,60]
[421687094,1778041855000,-500.0,0.00040822,60]
[421687091,1778041855000,-500.0,0.00040822,60]
[421687092,1778041855000,-500.0,0.00040822,60]
[421687098,1778041855000,-500.0,0.00040822,60]
[421687102,1778041855000,-500.0,0.00040822,60]
[421687095,1778041855000,-500.0,0.00040822,60]
[421687101,1778041855000,-500.0,0.00040822,60]
[421687097,1778041855000,-524.78889223,0.00040822,60]
[421687093,1778041855000,-500.0,0.00040822,60]
[421687100,1778041855000,-500.0,0.00040822,60]
[421687096,1778041855000,-500.0,0.00040822,60]
[421687099,1778041855000,-572.0,0.00040822,60]
[421687104,1778041855000,-500.0,0.00040822,60]
[421687114,1778041855000,-500.0,0.00040822,60]
[421687115,1778041855000,-500.0,0.00040822,60]
[421687103,1778041855000,-500.0,0.00040822,60]
[421687112,1778041855000,-500.0,0.00040822,60]
[421687110,1778041855000,-500.0,0.00040822,60]
[421687106,1778041855000,-500.0,0.00040822,60]
[421687107,1778041855000,-500.0,0.00040822,60]
[421687145,1778041855000,-176.81839514,0.00040822,60]
[421687144,1778041855000,-500.0,0.00040822,60]
[421687146,1778041855000,-156.40820005,0.00040832,120]
[421687175,1778041855000,-268.0,0.00041096,30]
[421687178,1778041855000,-338.7298001,0.00041096,2]
[421687183,1778041855000,-156.96950751,0.00041216,120]
[421687184,1778041855000,-50000.0,0.00041233,60]
[421687195,1778041855000,-1221.0,0.00041457,2]
[421687187,1778041855000,-8426.47188997,0.00041234,31]
[421687185,1778041855000,-717.45,0.00041233,60]
[421687196,1778041855000,-6043.0,0.00041457,2]
[421687194,1778041855000,-200.0,0.00041429,120]
[421687188,1778041855000,-546.69,0.00041278,120]
[421687186,1778041855000,-903.61,0.00041233,60]
[421687189,1778041855000,-6842.4682224,0.00041337,2]
[421687193,1778041855000,-2000.0,0.00041403,120]
[421687192,1778041855000,-5118.01986841,0.000414,120]
[421687190,1778041855000,-1560.0,0.0004137,120]
[421687191,1778041855000,-546.69,0.00041378,120]
[421687197,1778041855000,-1352.0,0.00041457,2]
[421687201,1778041855000,-2500.0,0.000415,120]
[421687205,1778041855000,-8902.44406883,0.000415,120]
[421687202,1778041855000,-152.0,0.000415,120]
[421687198,1778041855000,-546.69,0.00041478,120]
[421687204,1778041855000,-2000.0,0.000415,90]
[421687207,1778041855000,-500.0,0.00041527,13]
[421687208,1778041855000,-150.0,0.00041558,120]
[421687200,1778041855000,-3363.0,0.00041484,7]
[421687206,1778041855000,-836.76182996,0.000415,30]
[421687209,1778041855000,-163.0,0.00041559,11]
[421687153,1778041855000,-508.60317527,0.00040971,21]
[421687203,1778041855000,-1000.0,0.000415,120]
[421687181,1778041855000,-2500.0,0.000412,120]
[421687177,1778041855000,-1560.0,0.00041096,120]
[421687199,1778041855000,-4226.0,0.00041484,7]
[421687179,1778041855000,-500.0,0.00041129,17]
[421687182,1778041855000,-155.0,0.000412,120]
[421687154,1778041855000,-700.0,0.00040971,21]
[421687143,1778041855000,-500.0,0.00040822,60]
[421687155,1778041855000,-500.0,0.00040971,21]
[421687149,1778041855000,-163.0,0.00040875,11]
[421687150,1778041855000,-546.69,0.00040878,120]
[421687148,1778041855000,-779.0,0.00040875,2]
[421687152,1778041855000,-152.52386965,0.00040901,120]
[421687151,1778041855000,-22574.93,0.000409,120]
[421687157,1778041855000,-300.0,0.0004098,2]
[421687168,1778041855000,-546.69,0.00041078,120]
[421687167,1778041855000,-1142.1,0.00041041,120]
[421687159,1778041855000,-269.0,0.0004098,2]
[421687158,1778041855000,-300.0,0.0004098,2]
[421687156,1778041855000,-546.69,0.00040978,120]
[421687147,1778041855000,-892.0,0.00040875,2]
[421687164,1778041855000,-2523.0,0.00041,120]
[421687160,1778041855000,-153.56,0.0004099,120]
[421687172,1778041855000,-178.0,0.00041096,30]
[421687176,1778041855000,-1000.0,0.00041096,120]
[421687171,1778041855000,-300.0,0.00041096,30]
[421687174,1778041855000,-350.0,0.00041096,30]
[421687173,1778041855000,-350.0,0.00041096,30]
[421687180,1778041855000,-546.69,0.00041178,120]
[421687169,1778041855000,-295.0,0.00041096,30]
[421687163,1778041855000,-809.6671851,0.00041,120]
[421687161,1778041855000,-184.59,0.0004099,120]
[421687166,1778041855000,-1127.64890688,0.00041,90]
[421687162,1778041855000,-181.30831745,0.00041,2]
[421687170,1778041855000,-300.0,0.00041096,30]
[421687165,1778041855000,-51999.99999983,0.00041,2]
[421687254,1778041856000,-500.0,0.00041916,120]
[421687247,1778041856000,-150.54233273,0.000419,120]
[421687253,1778041856000,-500.0,0.00041916,120]
[421687251,1778041856000,-500.0,0.00041916,120]
[421687249,1778041856000,-500.0,0.00041912,114]
[421687246,1778041856000,-150.54233273,0.000419,120]
[421687252,1778041856000,-259.20048071,0.00041916,120]
[421687244,1778041856000,-1000.0,0.000419,60]
[421687245,1778041856000,-150.54233273,0.000419,120]
[421687235,1778041856000,-150.0,0.0004183,30]
[421687279,1778041856000,-500.0,0.00041917,2]
[421687248,1778041856000,-150.54233273,0.000419,120]
[421687243,1778041856000,-380.0,0.000419,30]
[421687263,1778041856000,-500.0,0.00041916,120]
[421687256,1778041856000,-500.0,0.00041916,120]
[421687258,1778041856000,-500.0,0.00041916,120]
[421687257,1778041856000,-500.0,0.00041916,120]
[421687260,1778041856000,-500.0,0.00041916,120]
[421687259,1778041856000,-500.0,0.00041916,120]
[421687261,1778041856000,-500.0,0.00041916,120]
[421687255,1778041856000,-500.0,0.00041916,120]
[421687262,1778041856000,-500.0,0.00041916,120]
[421687264,1778041856000,-500.0,0.00041916,120]
[421687266,1778041856000,-500.0,0.00041916,120]
[421687265,1778041856000,-500.0,0.00041916,120]
[421687268,1778041856000,-500.0,0.00041916,120]
[421687236,1778041856000,-245.49086412,0.0004183,30]
[421687250,1778041856000,-500.0,0.00041914,31]
[421687242,1778041856000,-546.69,0.00041878,120]
[421687228,1778041856000,-2743.32486361,0.000418,120]
[421687241,1778041856000,-408.0,0.00041867,10]
[421687210,1778041856000,-350.0,0.00041562,7]
[421687212,1778041856000,-576.26726883,0.00041585,7]
[421687217,1778041856000,-1560.0,0.00041644,120]
[421687219,1778041856000,-546.69,0.00041678,120]
[421687218,1778041856000,-350.0,0.00041658,5]
[421687211,1778041856000,-546.69,0.00041578,120]
[421687220,1778041856000,-156.96950751,0.00041682,120]
[421687221,1778041856000,-1142.1,0.00041694,120]
[421687213,1778041856000,-500.0,0.00041597,78]
[421687216,1778041856000,-202.45805464,0.0004161,60]
[421687215,1778041856000,-249.31281561,0.00041607,13]
[421687214,1778041856000,-350.0,0.00041597,4]
[421687222,1778041856000,-1000.0,0.000417,120]
[421687223,1778041856000,-152.0,0.00041762,15]
[421687229,1778041856000,-2500.0,0.000418,120]
[421687230,1778041856000,-208.85,0.00041811,120]
[421687231,1778041856000,-985.93728342,0.00041817,120]
[421687225,1778041856000,-163.0,0.00041791,11]
[421687226,1778041856000,-700.0,0.00041793,120]
[421687224,1778041856000,-546.69,0.00041778,120]
[421687227,1778041856000,-2112.87073412,0.000418,120]
[421687232,1778041856000,-500.0,0.00041821,107]
[421687237,1778041856000,-392.0,0.00041838,60]
[421687233,1778041856000,-150.0,0.0004183,30]
[421687234,1778041856000,-1604.00425162,0.0004183,30]
[421687238,1778041856000,-370.06,0.00041847,120]
[421687239,1778041856000,-375.34,0.00041851,30]
[421687240,1778041856000,-246.92,0.00041862,120]
[421687278,1778041856000,-501.60184649,0.00041917,120]
[421687289,1778041856000,-611.2,0.00041917,120]
[421687277,1778041856000,-500.0,0.00041917,120]
[421687304,1778041856000,-611.2,0.00041917,120]
[421687297,1778041856000,-611.2,0.00041917,120]
[421687305,1778041856000,-611.2,0.00041917,120]
[421687308,1778041856000,-1148.12,0.00041917,120]
[421687310,1778041856000,-1148.12,0.00041917,120]
[421687307,1778041856000,-1148.12,0.00041917,120]
[421687317,1778041856000,-1148.12,0.00041917,120]
[421687318,1778041856000,-1148.12,0.00041917,120]
[421687316,1778041856000,-1148.12,0.00041917,120]
[421687319,1778041856000,-1148.12,0.00041917,120]
[421687309,1778041856000,-1148.12,0.00041917,120]
[421687313,1778041856000,-1148.12,0.00041917,120]
[421687311,1778041856000,-1148.12,0.00041917,120]
[421687314,1778041856000,-1148.12,0.00041917,120]
[421687312,1778041856000,-1148.12,0.00041917,120]
[421687315,1778041856000,-1148.12,0.00041917,120]
[421687328,1778041856000,-1148.12,0.00041917,120]
[421687330,1778041856000,-1148.28095629,0.00041917,120]
[421687323,1778041856000,-1148.12,0.00041917,120]
[421687321,1778041856000,-1148.12,0.00041917,120]
[421687322,1778041856000,-1148.12,0.00041917,120]
[421687320,1778041856000,-1148.12,0.00041917,120]
[421687327,1778041856000,-1148.12,0.00041917,120]
[421687325,1778041856000,-1148.12,0.00041917,120]
[421687324,1778041856000,-1148.12,0.00041917,120]
[421687326,1778041856000,-1148.12,0.00041917,120]
[421687267,1778041856000,-500.0,0.00041916,120]
[421687306,1778041856000,-611.39432877,0.00041917,120]
[421687296,1778041856000,-611.2,0.00041917,120]
[421687329,1778041856000,-1148.12,0.00041917,120]
[421687302,1778041856000,-611.2,0.00041917,120]
[421687299,1778041856000,-611.2,0.00041917,120]
[421687273,1778041856000,-500.0,0.00041917,120]
[421687272,1778041856000,-409.41615677,0.00041917,2]
[421687271,1778041856000,-500.0,0.00041916,120]
[421687276,1778041856000,-500.0,0.00041917,120]
[421687270,1778041856000,-500.0,0.00041916,11]
[421687269,1778041856000,-592.7767285,0.00041916,120]
[421687275,1778041856000,-500.0,0.00041917,120]
[421687280,1778041856000,-500.0,0.00041917,120]
[421687285,1778041856000,-611.2,0.00041917,120]
[421687284,1778041856000,-611.2,0.00041917,120]
[421687281,1778041856000,-500.0,0.00041917,120]
[421687291,1778041856000,-611.2,0.00041917,120]
[421687274,1778041856000,-500.0,0.00041917,120]
[421687288,1778041856000,-611.2,0.00041917,120]
[421687298,1778041856000,-611.2,0.00041917,120]
[421687282,1778041856000,-507.37462273,0.00041917,120]
[421687301,1778041856000,-611.2,0.00041917,120]
[421687303,1778041856000,-611.2,0.00041917,120]
[421687300,1778041856000,-611.2,0.00041917,120]
[421687295,1778041856000,-611.2,0.00041917,120]
[421687294,1778041856000,-611.2,0.00041917,120]
[421687293,1778041856000,-611.2,0.00041917,120]
[421687283,1778041856000,-611.2,0.00041917,120]
[421687286,1778041856000,-611.2,0.00041917,120]
[421687287,1778041856000,-611.2,0.00041917,120]
[421687292,1778041856000,-611.2,0.00041917,120]
[421687290,1778041856000,-611.2,0.00041917,120]
[421687350,1778041857000,-500.0,0.00041917,120]
[421687359,1778041857000,-500.0,0.00041917,120]
[421687355,1778041857000,-500.0,0.00041917,120]
[421687352,1778041857000,-500.0,0.00041917,120]
[421687353,1778041857000,-500.0,0.00041917,120]
[421687351,1778041857000,-500.0,0.00041917,120]
[421687349,1778041857000,-500.0,0.00041917,120]
[421687361,1778041857000,-500.0,0.00041917,120]
[421687360,1778041857000,-647.01376244,0.00041917,120]
[421687369,1778041857000,-1157.26,0.00041917,120]
[421687363,1778041857000,-500.0,0.00041917,120]
[421687362,1778041857000,-500.0,0.00041917,120]
[421687365,1778041857000,-155.07703026,0.00041917,120]
[421687370,1778041857000,-1157.26,0.00041917,120]
[421687368,1778041857000,-1157.26,0.00041917,120]
[421687354,1778041857000,-500.0,0.00041917,120]
[421687366,1778041857000,-1157.26,0.00041917,120]
[421687364,1778041857000,-514.73998195,0.00041917,120]
[421687356,1778041857000,-500.0,0.00041917,120]
[421687335,1778041857000,-1000.0,0.00041917,2]
[421687347,1778041857000,-500.0,0.00041917,120]
[421687367,1778041857000,-1157.26,0.00041917,120]
[421687332,1778041857000,-1000.0,0.00041917,2]
[421687331,1778041857000,-1000.0,0.00041917,2]
[421687333,1778041857000,-1000.0,0.00041917,2]
[421687334,1778041857000,-1000.0,0.00041917,2]
[421687336,1778041857000,-1000.0,0.00041917,2]
[421687337,1778041857000,-1033.83970452,0.00041917,2]
[421687338,1778041857000,-151.76105572,0.00041917,120]
[421687358,1778041857000,-500.0,0.00041917,120]
[421687339,1778041857000,-500.0,0.00041917,120]
[421687341,1778041857000,-160.4245312,0.00041917,120]
[421687342,1778041857000,-500.0,0.00041917,120]
[421687343,1778041857000,-500.0,0.00041917,120]
[421687344,1778041857000,-500.0,0.00041917,120]
[421687345,1778041857000,-500.0,0.00041917,120]
[421687346,1778041857000,-500.0,0.00041917,120]
[421687348,1778041857000,-500.0,0.00041917,120]
[421687357,1778041857000,-500.0,0.00041917,120]
[421687340,1778041857000,-626.83930886,0.00041917,120]
[421687371,1778041857000,-1157.26,0.00041917,120]